Workbook

Sheet свод
A1: Наименование закупки: | C1: Выполнение комплекса строительно-монтажных работ по монтажу подкрановых путей крытого склада №1 и №2 на объекте «Терминал по перевалке минеральных удобрений в морском торговом порту Усть-Луга».
A2: Исх. № ______________ от __.__.2023г.
A4: Наименование Участника:
A5: ИНН Участника
A7: № п/п | B7: Наименование | C7: Требование ООО «ЕТУ» | D7: Предложение Участника, руб без НДС
D8: Материалы | E8: Работы
A9: 1 | B9: Конструкции железобетонные. Ростверк., 07.03.010 Крытый склад № 1 (код SAP 01.01.001) код ГП 3.1 | D9: ='3.1'!I116 -> 411655.3 | E9: ='3.1'!G116 -> 24698865.1
A10: 2 | B10: Конструкции железобетонные. Ростверк., 07.03.010 Крытый склад № 2 (код SAP 01.01.001) код ГП 3.1 | D10: ='3.2'!I109 -> 458133.62 | E10: ='3.2'!G109 -> 26559256.22
A11: 3 | B11: Итоговая стоимость строительно-монтажных работ | D11: =D9+D10 -> 869788.92 | E11: =E9+E10 -> 51258121.32
A12: 4 | B12: ВСЕГО | D12: =D11+E11 -> 52127910.24
A13: 5 | B13: НДС | C13: 0.2 | D13: =D12*0.2 -> 10425582.05
A14: 6 | B14: Итоговая стоимость СМР, руб с НДС | D14: =D12+D13 -> 62553492.29

Sheet 3.1
A2: Терминал по перевалке минеральных удобрений в морском торговом порту Усть-Луга. Береговые объекты терминала
A3: (наименование стройки)
A4: на на Конструкции железобетонные. Ростверк., 07.03.010 Крытый склад № 1 (код SAP 01.01.001) код ГП 3.1,
A5: (наименование работ и затрат, наименование объекта)
B6: Основание: | C6: 1632-2021-3.1-КЖ1
A8: № п/п | B8: Обоснование | C8: Наименование работ и затрат | D8: Ед. изм. | E8: Кол-во | F8: Цена за ед.измерения работ, руб. с НДС | G8: Всего, стоимость работ,руб. с НДС | H8: Цена за ед.измерения материалов, руб. с НДС | I8: Всего, стоимость материалов, руб. с НДС
A9: 1 | B9: 2 | C9: 3 | D9: 4 | E9: 5 | F9: 6 | G9: 7 | H9: 8 | I9: 9
A10: Раздел 1. Рельсовый путь № 1
A11: 1 | B11: ТЕР09-03-005-02 | C11: Монтаж подкрановых путей: по металлическим подкрановым балкам для рельсов типа КР //вес 83,09 кг./м | D11: 100 м рельса в одну нитку | E11: 6.499 | F11: =G11/E11 -> 1398677.04 | G11: 9090002.07 | H11: =I11/E11 -> 24775.22 | I11: 161014.16
B12: 101-0309 | C12: Канаты пеньковые пропитанные | D12: т | E12: 0,0009 0,0058 | G12: 0 | I12: 0
B13: 101-0324 | C13: Кислород технический: газообразный | D13: м3 | E13: 16,58 107,8 | G13: 0 | I13: 0
B14: 101-0797 | C14: Проволока горячекатаная в мотках, диаметром 6,3-6,5 мм | D14: т | E14: 0,0002 0,0013 | G14: 0 | I14: 0
B15: 101-1515 | C15: Электроды диаметром: 4 мм Э46 | D15: т | E15: 0,1 0,6499 | G15: 0 | I15: 0
B16: 101-1805 | C16: Гвозди строительные | D16: т | E16: 0,0008 0,0052 | G16: 0 | I16: 0
B17: 101-2278 | C17: Пропан-бутан, смесь техническая | D17: кг | E17: 5 32,5 | G17: 0 | I17: 0
B18: 101-2467 | C18: Растворитель марки: Р-4 | D18: т | E18: 0,0005 0,0032 | G18: 0 | I18: 0
B19: 102-0023 | C19: Бруски обрезные хвойных пород длиной: 4-6,5 м, шириной 75-150 мм, толщиной 40-75 мм, I сорта | D19: м3 | E19: 0,08 0,5199 | G19: 0 | I19: 0
B20: 113-0021 | C20: Грунтовка: ГФ-021 красно-коричневая | D20: т | E20: 0,0026 0,0169 | G20: 0 | I20: 0
B21: 508-0097 | C21: Канат двойной свивки типа ТК, конструкции 6х19(1+6+12)+1 о.с., оцинкованный из проволок марки В, маркировочная группа: 1770 н/мм2, диаметром 5,5 мм | D21: 10 м | E21: 0,09 0,5849 | G21: 0 | I21: 0
A22: 2 * | B22: ТССЦ-202-0017 | C22: Пути подкрановые, марка стали: С 255, крепления и упоры//Рельсовые комплекты | D22: т | E22: 25.17271 | F22: =G22/E22 -> 0 | G22: 0 | H22: =I22/E22 -> 0 | I22: 0
A23: 3 * | B23: ТССЦ-202-0016 | C23: Пути подкрановые, марка стали: С 255, рельсы железнодорожные | D23: т | E23: 27.000096 | F23: 0 | G23: 0 | H23: 0 | I23: 0
A24: Раздел 2. Рельсовый путь № 2 | G24: 0 | I24: 0
A25: 4 | B25: ТЕР09-03-005-02 | C25: Монтаж подкрановых путей: по металлическим подкрановым балкам для рельсов типа КР //вес 83,09 кг./м | D25: 100 м рельса в одну нитку | E25: 6.8546 | F25: 1398676.94 | G25: 9587370.92 | H25: 24775.22 | I25: 169824.22
B26: 101-0309 | C26: Канаты пеньковые пропитанные | D26: т | E26: 0,0009 0,0062 | G26: 0 | I26: 0
B27: 101-0324 | C27: Кислород технический: газообразный | D27: м3 | E27: 16,58 113,6 | G27: 0 | I27: 0
B28: 101-0797 | C28: Проволока горячекатаная в мотках, диаметром 6,3-6,5 мм | D28: т | E28: 0,0002 0,0014 | G28: 0 | I28: 0
B29: 101-1515 | C29: Электроды диаметром: 4 мм Э46 | D29: т | E29: 0,1 0,6855 | G29: 0 | I29: 0
B30: 101-1805 | C30: Гвозди строительные | D30: т | E30: 0,0008 0,0055 | G30: 0 | I30: 0
B31: 101-2278 | C31: Пропан-бутан, смесь техническая | D31: кг | E31: 5 34,27 | G31: 0 | I31: 0
B32: 101-2467 | C32: Растворитель марки: Р-4 | D32: т | E32: 0,0005 0,0034 | G32: 0 | I32: 0
B33: 102-0023 | C33: Бруски обрезные хвойных пород длиной: 4-6,5 м, шириной 75-150 мм, толщиной 40-75 мм, I сорта | D33: м3 | E33: 0,08 0,5484 | G33: 0 | I33: 0
B34: 113-0021 | C34: Грунтовка: ГФ-021 красно-коричневая | D34: т | E34: 0,0026 0,0178 | G34: 0 | I34: 0
B35: 508-0097 | C35: Канат двойной свивки типа ТК, конструкции 6х19(1+6+12)+1 о.с., оцинкованный из проволок марки В, маркировочная группа: 1770 н/мм2, диаметром 5,5 мм | D35: 10 м | E35: 0,09 0,6169 | G35: 0 | I35: 0
A36: 5 * | B36: ТССЦ-202-0017 | C36: Пути подкрановые, марка стали: С 255, крепления и упоры//Рельсовые комплекты | D36: т | E36: 43.10634 | F36: =G36/E36 -> 0 | G36: 0 | H36: =I36/E36 -> 0 | I36: 0
A37: 6 * | B37: ТССЦ-202-0016 | C37: Пути подкрановые, марка стали: С 255, рельсы железнодорожные | D37: т | E37: 38.889573 | F37: 0 | G37: 0 | H37: 0 | I37: 0
A38: Раздел 3. Рельсовый путь № 3 | G38: 0 | I38: 0
A39: 7 | B39: ТЕР09-03-005-02 | C39: Монтаж подкрановых путей: по металлическим подкрановым балкам для рельсов типа КР //вес 83,09 кг./м | D39: 100 м рельса в одну нитку | E39: 6.544 | F39: 1398676.91 | G39: 9152941.72 | H39: 24775.22 | I39: 162129.05
B40: 101-0309 | C40: Канаты пеньковые пропитанные | D40: т | E40: 0,0009 0,0059 | G40: 0 | I40: 0
B41: 101-0324 | C41: Кислород технический: газообразный | D41: м3 | E41: 16,58 108,5 | G41: 0 | I41: 0
B42: 101-0797 | C42: Проволока горячекатаная в мотках, диаметром 6,3-6,5 мм | D42: т | E42: 0,0002 0,0013 | G42: 0 | I42: 0
B43: 101-1515 | C43: Электроды диаметром: 4 мм Э46 | D43: т | E43: 0,1 0,6544 | G43: 0 | I43: 0
B44: 101-1805 | C44: Гвозди строительные | D44: т | E44: 0,0008 0,0052 | G44: 0 | I44: 0
B45: 101-2278 | C45: Пропан-бутан, смесь техническая | D45: кг | E45: 5 32,72 | G45: 0 | I45: 0
B46: 101-2467 | C46: Растворитель марки: Р-4 | D46: т | E46: 0,0005 0,0033 | G46: 0 | I46: 0
B47: 102-0023 | C47: Бруски обрезные хвойных пород длиной: 4-6,5 м, шириной 75-150 мм, толщиной 40-75 мм, I сорта | D47: м3 | E47: 0,08 0,5235 | G47: 0 | I47: 0
B48: 113-0021 | C48: Грунтовка: ГФ-021 красно-коричневая | D48: т | E48: 0,0026 0,017 | G48: 0 | I48: 0
B49: 508-0097 | C49: Канат двойной свивки типа ТК, конструкции 6х19(1+6+12)+1 о.с., оцинкованный из проволок марки В, маркировочная группа: 1770 н/мм2, диаметром 5,5 мм | D49: 10 м | E49: 0,09 0,589 | G49: 0 | I49: 0
A50: 8 * | B50: ТССЦ-202-0017 | C50: Пути подкрановые, марка стали: С 255, крепления и упоры//Рельсовые комплекты | D50: т | E50: 12.101 | F50: =G50/E50 -> 0 | G50: 0 | H50: =I50/E50 -> 0 | I50: 0
A51: 9 * | B51: ТССЦ-202-0016 | C51: Пути подкрановые, марка стали: С 255, рельсы железнодорожные | D51: т | E51: 4.109632 | F51: 0 | G51: 0 | H51: 0 | I51: 0
A52: 10 | B52: ТЕР46-08-012-05 | C52: Установка анкеров в отверстия глубиной 100 мм с применением смесей серии MASTERFLOW, диаметр анкера: 20 мм и более | D52: 100 шт. | E52: 13.06 | F52: 34380.22 | G52: 449005.61 | H52: 0 | I52: 0
A53: 11 | B53: ТЕР46-08-012-10 | C53: На каждые 10 мм изменения глубины отверстия добавлять (уменьшать) к расценке: 46-08-012-05 | D53: 100 шт. | E53: 13.06 | F53: 93601.03 | G53: 1222429.46 | H53: 0 | I53: 0
A54: 12 * | B54: ТССЦ-509-5787 | C54: Анкер химический (капсула с клеевым составом) Hilti HIT-HY 150/330 | D54: шт. | E54: 1306 | F54: 0 | G54: 0 | H54: 0 | I54: 0
A55: 13 * | B55: ТССЦ-509-4617 | C55: Шпилька анкерная Hilti: HIT-V-5,8 М24х450 (HAS) для использования с химическими анкерами HIT | D55: шт. | E55: 1306 | F55: 0 | G55: 0 | H55: 0 | I55: 0
A56: Раздел 4. Подливка из безусадочного мелкозернистого бетона | G56: 0 | I56: 0
A57: Рельсовый путь № 3 длинна 327,2м толщ (разрез 15-15 лист 282) 54 мм ширина (разрез 15-15 лист 282) - 400 мм | G57: 0 | I57: 0
A58: Рельсовый путь № 2 длинна 342,73 м толщ (разрез 3-3 лист 282) 130 мм ширина (разрез 3-3 лист 282) - 600 мм | G58: 0 | I58: 0
A59: Рельсовый путь № 1 длинна 324,95 м толщ (разрез 1-1 лист 282) 150 мм ширина (разрез 1-1 лист 282) - 600 мм | G59: 0 | I59: 0
A60: Раздел 5. Крепление опорных деталей. Лист 282.2, 282.3 | G60: 0 | I60: 0
A61: Крепление стоек к ростверку | G61: 0 | I61: 0
A62: 14 | B62: ТЕР46-08-012-01 | C62: Установка анкеров в отверстия глубиной 100 мм с применением смесей серии MASTERFLOW, диаметр анкера: до 8 мм | D62: 100 шт. | E62: 2.96 | F62: 14329.38 | G62: 42414.96 | H62: 0 | I62: 0
A63: 15 | B63: ТЕР46-08-012-06 | C63: На каждые 10 мм изменения глубины отверстия добавлять (уменьшать) к расценке: 46-08-012-01 | D63: 100 шт. | E63: -2.96 | F63: 4904.07 | G63: -14516.05 | H63: 0 | I63: 0
A64: 16 * | B64: ТССЦ-509-2631 | C64: Капсула с клеевым составом Hilti HVU-TZ M20 | D64: шт. | E64: 296 | F64: 0 | G64: 0 | H64: 0 | I64: 0
A65: 17 * | B65: ТССЦ-509-4616 | C65: Шпилька анкерная Hilti: HIT-V-5,8 М16х300 (HAS) для использования с химическими анкерами HIT | D65: шт. | E65: 296 | F65: 0 | G65: 0 | H65: 0 | I65: 0
A66: Крепление тормозных упоров крацер-крана к роствергу | G66: 0 | I66: 0
A67: 18 | B67: ТЕР46-08-012-05 | C67: Установка анкеров в отверстия глубиной 100 мм с применением смесей серии MASTERFLOW, диаметр анкера: 20 мм и более | D67: 100 шт. | E67: 0.24 | F67: 34379.21 | G67: 8251.01 | H67: 0 | I67: 0
A68: 19 | B68: ТЕР46-08-012-10 | C68: На каждые 10 мм изменения глубины отверстия добавлять (уменьшать) к расценке: 46-08-012-05 | D68: 100 шт. | E68: 0.24 | F68: 124798.5 | G68: 29951.64 | H68: 0 | I68: 0
A69: 20 * | B69: ТССЦ-509-4614 | C69: Анкер химический (капсула с клеевым составом) Hilti HVU М24/210 | D69: шт. | E69: 24 | F69: 0 | G69: 0 | H69: 0 | I69: 0
A70: 21 * | B70: ТССЦ-509-4617 | C70: Шпилька анкерная Hilti: HIT-V-5,8 М24х450 (HAS) для использования с химическими анкерами HIT | D70: шт. | E70: 24 | F70: 0 | G70: 0 | H70: 0 | I70: 0
A71: Крепление крацер-крана в сервесном положении | G71: 0 | I71: 0
A72: 22 | B72: ТЕР46-08-012-01 | C72: Установка анкеров в отверстия глубиной 100 мм с применением смесей серии MASTERFLOW, диаметр анкера: до 8 мм | D72: 100 шт. | E72: 0.24 | F72: 14324 | G72: 3437.76 | H72: 0 | I72: 0
A73: 23 | B73: ТЕР46-08-012-06 | C73: На каждые 10 мм изменения глубины отверстия добавлять (уменьшать) к расценке: 46-08-012-01 | D73: 100 шт. | E73: 0.24 | F73: 36779.79 | G73: 8827.15 | H73: 0 | I73: 0
A74: 24 * | B74: ТССЦ-509-2631 | C74: Капсула с клеевым составом Hilti HVU-TZ M20 | D74: шт. | E74: 24 | F74: 0 | G74: 0 | H74: 0 | I74: 0
A75: 25 * | B75: ТССЦ-509-4616 | C75: Шпилька анкерная Hilti: HIT-V-5,8 М16х300 (HAS) для использования с химическими анкерами HIT | D75: шт. | E75: 24 | F75: 0 | G75: 0 | H75: 0 | I75: 0
A76: Крепление стоек хвостовой станции к ростверку | G76: 0 | I76: 0
A77: 26 | B77: ТЕР46-08-012-05 | C77: Установка анкеров в отверстия глубиной 100 мм с применением смесей серии MASTERFLOW, диаметр анкера: 20 мм и более | D77: 100 шт. | E77: 0.16 | F77: 34375.25 | G77: 5500.04 | H77: 0 | I77: 0
A78: 27 | B78: ТЕР46-08-012-10 | C78: На каждые 10 мм изменения глубины отверстия добавлять (уменьшать) к расценке: 46-08-012-05 | D78: 100 шт. | E78: 0.16 | F78: 93598.88 | G78: 14975.82 | H78: 0 | I78: 0
A79: 28 * | B79: ТССЦ-509-4614 | C79: Анкер химический (капсула с клеевым составом) Hilti HVU М24/210 | D79: шт. | E79: 16 | F79: 0 | G79: 0 | H79: 0 | I79: 0
A80: 29 * | B80: ТССЦ-509-4617 | C80: Шпилька анкерная Hilti: HIT-V-5,8 М24х450 (HAS) для использования с химическими анкерами HIT | D80: шт. | E80: 16 | F80: 0 | G80: 0 | H80: 0 | I80: 0
A81: 30 | B81: ТЕР46-03-014-01 | C81: Сверление вертикальных отверстий в железобетонных конструкциях полов перфоратором глубиной 200 мм диаметром: 20 мм | D81: 100 отверстий | E81: 0.08 | F81: 17718.25 | G81: 1417.46 | H81: 0 | I81: 0
A82: 31 | B82: ТЕР46-03-014-14 | C82: На каждые 10 мм изменения глубины сверления добавлять или исключать: к расценке 46-03-014-01 | D82: 100 отверстий | E82: -0.08 | F82: 7297.13 | G82: -583.77 | H82: 0 | I82: 0
A83: 32 | B83: ТЕР06-01-015-03 | C83: Установка анкерных болтов: при бетонировании со связями из арматуры | D83: 1 т | E83: 0.002317 | F83: 286309.88 | G83: 663.38 | H83: 159132.5 | I83: 368.71
B84: 101-1513 | C84: Электроды диаметром: 4 мм Э42 | D84: т | E84: 0,002 0 | G84: 0 | I84: 0
B85: 201-0798 | C85: Кондуктор инвентарный металлический | D85: шт. | E85: 0,01 0 | G85: 0 | I85: 0
B86: 204-0005 | C86: Горячекатаная арматурная сталь гладкая класса А-I, диаметром: 14 мм | D86: т | E86: 0,09 0,0002 | G86: 0 | I86: 0
B87: 204-0059 | C87: Анкерные детали из прямых или гнутых круглых стержней с резьбой (в комплекте с шайбами и гайками или без них),: поставляемые отдельно | D87: т | E87: 1 0,0023 | G87: 0 | I87: 0
A88: Крепление тормазных упоров мобильного бункера | G88: 0 | I88: 0
A89: 33 | B89: ТЕР46-08-012-05 | C89: Установка анкеров в отверстия глубиной 100 мм с применением смесей серии MASTERFLOW, диаметр анкера: 20 мм и более | D89: 100 шт. | E89: 0.18 | F89: =G89/E89 -> 34371.28 | G89: 6186.83 | H89: =I89/E89 -> 0 | I89: 0
A90: 34 | B90: ТЕР46-08-012-10 | C90: На каждые 10 мм изменения глубины отверстия добавлять (уменьшать) к расценке: 46-08-012-05 | D90: 100 шт. | E90: 0.18 | F90: 93596.22 | G90: 16847.32 | H90: 0 | I90: 0
A91: 35 * | B91: ТССЦ-509-4614 | C91: Анкер химический (капсула с клеевым составом) Hilti HVU М24/210 | D91: шт. | E91: 18 | F91: 0 | G91: 0 | H91: 0 | I91: 0
A92: 36 * | B92: ТССЦ-509-4617 | C92: Шпилька анкерная Hilti: HIT-V-5,8 М24х450 (HAS) для использования с химическими анкерами HIT | D92: шт. | E92: 18 | F92: 0 | G92: 0 | H92: 0 | I92: 0
A93: 37 | B93: ТЕР46-03-014-01 | C93: Сверление вертикальных отверстий в железобетонных конструкциях полов перфоратором глубиной 200 мм диаметром: 20 мм | D93: 100 отверстий | E93: 0.18 | F93: 17731.44 | G93: 3191.66 | H93: 0 | I93: 0
A94: 38 | B94: ТЕР46-03-014-14 | C94: На каждые 10 мм изменения глубины сверления добавлять или исключать: к расценке 46-03-014-01 | D94: 100 отверстий | E94: -0.18 | F94: 7291.83 | G94: -1312.53 | H94: 0 | I94: 0
A95: 39 | B95: ТЕР06-01-015-03 | C95: Установка анкерных болтов: при бетонировании со связями из арматуры | D95: 1 т | E95: 0.004086 | F95: 286287.32 | G95: 1169.77 | H95: 159133.63 | I95: 650.22
B96: 101-1513 | C96: Электроды диаметром: 4 мм Э42 | D96: т | E96: 0,002 0 | G96: 0 | I96: 0
B97: 201-0798 | C97: Кондуктор инвентарный металлический | D97: шт. | E97: 0,01 0 | G97: 0 | I97: 0
B98: 204-0005 | C98: Горячекатаная арматурная сталь гладкая класса А-I, диаметром: 14 мм | D98: т | E98: 0,09 0,0004 | G98: 0 | I98: 0
B99: 204-0059 | C99: Анкерные детали из прямых или гнутых круглых стержней с резьбой (в комплекте с шайбами и гайками или без них),: поставляемые отдельно | D99: т | E99: 1 0,0041 | G99: 0 | I99: 0
A100: Крепление стоек вертикального гравитационного натяжного устройтсва к ростверку | G100: 0 | I100: 0
A101: 40 | B101: ТЕР46-08-012-01 | C101: Установка анкеров в отверстия глубиной 100 мм с применением смесей серии MASTERFLOW, диаметр анкера: до 8 мм | D101: 100 шт. | E101: 0.04 | F101: =G101/E101 -> 14308 | G101: 572.32 | H101: =I101/E101 -> 0 | I101: 0
A102: 41 | B102: ТЕР46-08-012-06 | C102: На каждые 10 мм изменения глубины отверстия добавлять (уменьшать) к расценке: 46-08-012-01 | D102: 100 шт. | E102: 0.04 | F102: 36771.75 | G102: 1470.87 | H102: 0 | I102: 0
A103: 42 * | B103: ТССЦ-509-2631 | C103: Капсула с клеевым составом Hilti HVU-TZ M20 | D103: шт. | E103: 4 | F103: 0 | G103: 0 | H103: 0 | I103: 0
A104: 43 * | B104: ТССЦ-509-4616 | C104: Шпилька анкерная Hilti: HIT-V-5,8 М16х300 (HAS) для использования с химическими анкерами HIT | D104: шт. | E104: 4 | F104: 0 | G104: 0 | H104: 0 | I104: 0
A105: Крепление стоек орграждения к роствергу | G105: 0 | I105: 0
A106: 44 | B106: ТЕР46-08-012-01 | C106: Установка анкеров в отверстия глубиной 100 мм с применением смесей серии MASTERFLOW, диаметр анкера: до 8 мм | D106: 100 шт. | E106: 0.24 | F106: 14324 | G106: 3437.76 | H106: 0 | I106: 0
A107: 45 | B107: ТЕР46-08-012-06 | C107: На каждые 10 мм изменения глубины отверстия добавлять (уменьшать) к расценке: 46-08-012-01 | D107: 100 шт. | E107: 0.24 | F107: 12257.29 | G107: 2941.75 | H107: 0 | I107: 0
A108: 46 * | B108: ТССЦ-509-2631 | C108: Капсула с клеевым составом Hilti HVU-TZ M20 | D108: шт. | E108: 24 | F108: 0 | G108: 0 | H108: 0 | I108: 0
A109: 47 * | B109: ТССЦ-509-4616 | C109: Шпилька анкерная Hilti: HIT-V-5,8 М16х300 (HAS) для использования с химическими анкерами HIT | D109: шт. | E109: 24 | F109: 0 | G109: 0 | H109: 0 | I109: 0
A110: Крепление лебедки обслуживания к росвергу | G110: 0 | I110: 0
A111: 48 | B111: ТЕР46-08-012-01 | C111: Установка анкеров в отверстия глубиной 100 мм с применением смесей серии MASTERFLOW, диаметр анкера: до 8 мм | D111: 100 шт. | E111: 0.04 | F111: 14308 | G111: 572.32 | H111: 0 | I111: 0
A112: 49 | B112: ТЕР46-08-012-06 | C112: На каждые 10 мм изменения глубины отверстия добавлять (уменьшать) к расценке: 46-08-012-01 | D112: 100 шт. | E112: 0.04 | F112: 36771.75 | G112: 1470.87 | H112: 0 | I112: 0
A113: 50 * | B113: ТССЦ-509-2631 | C113: Капсула с клеевым составом Hilti HVU-TZ M20 | D113: шт. | E113: 4 | F113: 0 | G113: 0 | H113: 0 | I113: 0
A114: 51 * | B114: ТССЦ-509-4616 | C114: Шпилька анкерная Hilti: HIT-V-5,8 М16х300 (HAS) для использования с химическими анкерами HIT | D114: шт. | E114: 4 | F114: 0 | H114: 0 | J114: общая стоимость
C115: Всего, руб. с НДС | G115: =SUM(G11:G114) -> 29638638.12 | I115: =SUM(I11:I114) -> 493986.36 | J115: =G115+I115 -> 30132624.48
C116: Всего, руб. без НДС | G116: =G115/1.2 -> 24698865.1 | I116: =I115/1.2 -> 411655.3 | J116: =G116+I116 -> 25110520.4

Sheet 3.2
A2: Терминал по перевалке минеральных удобрений в морском торговом порту Усть-Луга. Береговые объекты терминала
A3: (наименование стройки)
A4: на на Конструкции железобетонные. Ростверк., 07.03.010 Крытый склад № 2 (код SAP 01.01.001) код ГП 3.1,
A5: (наименование работ и затрат, наименование объекта)
B6: Основание: | C6: 1632-2021-3.2-КЖ1
A8: № п/п | B8: Обоснование | C8: Наименование работ и затрат | D8: Ед. изм. | E8: Кол-во | F8: Цена за ед.измерения работ, руб. с НДС | G8: Всего, стоимость работ,руб. с НДС | H8: Цена за ед.измерения материалов, руб. с НДС | I8: Всего, стоимость материалов, руб. с НДС
A9: 1 | B9: 2 | C9: 3 | D9: 4 | E9: 5 | F9: 6 | G9: 7 | H9: 8 | I9: 9
A10: Раздел 1. Рельсовый путь № 1
A11: 1 | B11: ТЕР09-03-005-02 | C11: Монтаж подкрановых путей: по металлическим подкрановым балкам для рельсов типа КР //вес 83,09 кг./м | D11: 100 м рельса в одну нитку | E11: 7.6949 | F11: =G11/E11 -> 1316310.92 | G11: 10128880.88 | H11: =I11/E11 -> 23316.24 | I11: 179416.16
B12: 101-0309 | C12: Канаты пеньковые пропитанные | D12: т | E12: 0,0009 0,0069 | G12: 0 | I12: 0
B13: 101-0324 | C13: Кислород технический: газообразный | D13: м3 | E13: 16,58 127,6 | G13: 0 | I13: 0
B14: 101-0797 | C14: Проволока горячекатаная в мотках, диаметром 6,3-6,5 мм | D14: т | E14: 0,0002 0,0015 | G14: 0 | I14: 0
B15: 101-1515 | C15: Электроды диаметром: 4 мм Э46 | D15: т | E15: 0,1 0,7695 | G15: 0 | I15: 0
B16: 101-1805 | C16: Гвозди строительные | D16: т | E16: 0,0008 0,0062 | G16: 0 | I16: 0
B17: 101-2278 | C17: Пропан-бутан, смесь техническая | D17: кг | E17: 5 38,47 | G17: 0 | I17: 0
B18: 101-2467 | C18: Растворитель марки: Р-4 | D18: т | E18: 0,0005 0,0038 | G18: 0 | I18: 0
B19: 102-0023 | C19: Бруски обрезные хвойных пород длиной: 4-6,5 м, шириной 75-150 мм, толщиной 40-75 мм, I сорта | D19: м3 | E19: 0,08 0,6156 | G19: 0 | I19: 0
B20: 113-0021 | C20: Грунтовка: ГФ-021 красно-коричневая | D20: т | E20: 0,0026 0,02 | G20: 0 | I20: 0
B21: 508-0097 | C21: Канат двойной свивки типа ТК, конструкции 6х19(1+6+12)+1 о.с., оцинкованный из проволок марки В, маркировочная группа: 1770 н/мм2, диаметром 5,5 мм | D21: 10 м | E21: 0,09 0,6925 | G21: 0 | I21: 0
A22: 2 * | B22: ТССЦ-202-0017 | C22: Пути подкрановые, марка стали: С 255, крепления и упоры//Рельсовые комплекты | D22: т | E22: 29.78362 | F22: =G22/E22 -> 0 | G22: 0 | H22: =I22/E22 -> 0 | I22: 0
A23: 3 * | B23: ТССЦ-202-0016 | C23: Пути подкрановые, марка стали: С 255, рельсы железнодорожные | D23: т | E23: 31.968462 | F23: 0 | G23: 0 | H23: 0 | I23: 0
A24: Раздел 2. Рельсовый путь № 2 | G24: 0 | I24: 0
A25: Раздел 2. Рельсовый путь № 2 | G25: 0 | I25: 0
A26: 4 | B26: ТЕР09-03-005-02 | C26: Монтаж подкрановых путей: по металлическим подкрановым балкам для рельсов типа КР //вес 83,09 кг./м | D26: 100 м рельса в одну нитку | E26: 8.0702 | F26: 1316311.06 | G26: 10622893.48 | H26: 23316.24 | I26: 188166.74
B27: 101-0309 | C27: Канаты пеньковые пропитанные | D27: т | E27: 0,0009 0,0073 | G27: 0 | I27: 0
B28: 101-0324 | C28: Кислород технический: газообразный | D28: м3 | E28: 16,58 133,8 | G28: 0 | I28: 0
B29: 101-0797 | C29: Проволока горячекатаная в мотках, диаметром 6,3-6,5 мм | D29: т | E29: 0,0002 0,0016 | G29: 0 | I29: 0
B30: 101-1515 | C30: Электроды диаметром: 4 мм Э46 | D30: т | E30: 0,1 0,807 | G30: 0 | I30: 0
B31: 101-1805 | C31: Гвозди строительные | D31: т | E31: 0,0008 0,0065 | G31: 0 | I31: 0
B32: 101-2278 | C32: Пропан-бутан, смесь техническая | D32: кг | E32: 5 40,35 | G32: 0 | I32: 0
B33: 101-2467 | C33: Растворитель марки: Р-4 | D33: т | E33: 0,0005 0,004 | G33: 0 | I33: 0
B34: 102-0023 | C34: Бруски обрезные хвойных пород длиной: 4-6,5 м, шириной 75-150 мм, толщиной 40-75 мм, I сорта | D34: м3 | E34: 0,08 0,6456 | G34: 0 | I34: 0
B35: 113-0021 | C35: Грунтовка: ГФ-021 красно-коричневая | D35: т | E35: 0,0026 0,021 | G35: 0 | I35: 0
B36: 508-0097 | C36: Канат двойной свивки типа ТК, конструкции 6х19(1+6+12)+1 о.с., оцинкованный из проволок марки В, маркировочная группа: 1770 н/мм2, диаметром 5,5 мм | D36: 10 м | E36: 0,09 0,7263 | G36: 0 | I36: 0
A37: 5 * | B37: ТССЦ-202-0017 | C37: Пути подкрановые, марка стали: С 255, крепления и упоры//Рельсовые комплекты | D37: т | E37: 31.7311 | F37: 0 | G37: 0 | H37: 0 | I37: 0
A38: 6 * | B38: ТССЦ-202-0016 | C38: Пути подкрановые, марка стали: С 255, рельсы железнодорожные | D38: т | E38: 45.78628 | F38: 0 | G38: 0 | H38: 0 | I38: 0
A39: Раздел 3. Рельсовый путь № 3 | G39: 0 | I39: 0
A40: Раздел 3. Рельсовый путь № 3 | G40: 0 | I40: 0
A41: 7 | B41: ТЕР09-03-005-02 | C41: Монтаж подкрановых путей: по металлическим подкрановым балкам для рельсов типа КР //вес 83,09 кг./м | D41: 100 м рельса в одну нитку | E41: 7.7722 | F41: 1316310.95 | G41: 10230632 | H41: 23316.24 | I41: 181218.51
B42: 101-0309 | C42: Канаты пеньковые пропитанные | D42: т | E42: 0,0009 0,007 | G42: 0 | I42: 0
B43: 101-0324 | C43: Кислород технический: газообразный | D43: м3 | E43: 16,58 128,9 | G43: 0 | I43: 0
B44: 101-0797 | C44: Проволока горячекатаная в мотках, диаметром 6,3-6,5 мм | D44: т | E44: 0,0002 0,0016 | G44: 0 | I44: 0
B45: 101-1515 | C45: Электроды диаметром: 4 мм Э46 | D45: т | E45: 0,1 0,7772 | G45: 0 | I45: 0
B46: 101-1805 | C46: Гвозди строительные | D46: т | E46: 0,0008 0,0062 | G46: 0 | I46: 0
B47: 101-2278 | C47: Пропан-бутан, смесь техническая | D47: кг | E47: 5 38,86 | G47: 0 | I47: 0
B48: 101-2467 | C48: Растворитель марки: Р-4 | D48: т | E48: 0,0005 0,0039 | G48: 0 | I48: 0
B49: 102-0023 | C49: Бруски обрезные хвойных пород длиной: 4-6,5 м, шириной 75-150 мм, толщиной 40-75 мм, I сорта | D49: м3 | E49: 0,08 0,6218 | G49: 0 | I49: 0
B50: 113-0021 | C50: Грунтовка: ГФ-021 красно-коричневая | D50: т | E50: 0,0026 0,0202 | G50: 0 | I50: 0
B51: 508-0097 | C51: Канат двойной свивки типа ТК, конструкции 6х19(1+6+12)+1 о.с., оцинкованный из проволок марки В, маркировочная группа: 1770 н/мм2, диаметром 5,5 мм | D51: 10 м | E51: 0,09 0,6995 | G51: 0 | I51: 0
A52: 8 * | B52: ТССЦ-202-0017 | C52: Пути подкрановые, марка стали: С 255, крепления и упоры//Рельсовые комплекты | D52: т | E52: 14.42985 | F52: 0 | G52: 0 | H52: 0 | I52: 0
A53: 9 * | B53: ТССЦ-202-0016 | C53: Пути подкрановые, марка стали: С 255, рельсы железнодорожные | D53: т | E53: 4.880942 | F53: 0 | G53: 0 | H53: 0 | I53: 0
A54: 10 | B54: ТЕР46-08-012-01 | C54: Установка анкеров в отверстия глубиной 100 мм с применением смесей серии MASTERFLOW, диаметр анкера: до 8 мм | D54: 100 шт. | E54: 15.46 | F54: 13485.62 | G54: 208487.61 | H54: 0 | I54: 0
A55: 11 | B55: ТЕР46-08-012-06 | C55: На каждые 10 мм изменения глубины отверстия добавлять (уменьшать) к расценке: 46-08-012-01 | D55: 100 шт. | E55: 15.46 | F55: 34616.56 | G55: 535172.01 | H55: 0 | I55: 0
A56: 12 * | B56: ТССЦ-509-2631 | C56: Капсула с клеевым составом Hilti HVU-TZ M20 | D56: шт. | E56: 1546 | F56: 0 | G56: 0 | H56: 0 | I56: 0
A57: 13 * | B57: ТССЦ-509-4616 | C57: Шпилька анкерная Hilti: HIT-V-5,8 М16х300 (HAS) для использования с химическими анкерами HIT | D57: шт. | E57: 1546 | F57: 0 | G57: 0 | H57: 0 | I57: 0
A58: Раздел 4. Подливка из безусадочного мелкозернистого бетона | G58: 0 | I58: 0
A59: Рельсовый путь № 3 длинна 388,61 толщ (разрез 15-15 лист 424) 54 мм ширина (разрез 15-15 лист 424) - 400 мм | G59: 0 | I59: 0
A60: Рельсовый путь № 2 длинна 403,510 м толщ (разрез 3-3 лист 424) 130 мм ширина (разрез 3-3 лист 424) - 600 мм | G60: 0 | I60: 0
A61: Рельсовый путь № 1 длинна 384,745 м толщ (разрез 1-1 лист 424) 150 мм ширина (разрез 1-1 лист 424) - 600 мм | G61: 0 | I61: 0
A62: Раздел 5. Крепление опорных деталей. Лист 282.2, 282.3 | G62: 0 | I62: 0
A63: Раздел 5. Крепление опорных деталей. Лист 424,.2, 424.3 | G63: 0 | I63: 0
A64: Крепление стоек к ростверку | G64: 0 | I64: 0
A65: 14 | B65: ТЕР46-08-012-01 | C65: Установка анкеров в отверстия глубиной 100 мм с применением смесей серии MASTERFLOW, диаметр анкера: до 8 мм | D65: 100 шт. | E65: 3.42 | F65: 13485.47 | G65: 46120.32 | H65: 0 | I65: 0
A66: 15 | B66: ТЕР46-08-012-06 | C66: На каждые 10 мм изменения глубины отверстия добавлять (уменьшать) к расценке: 46-08-012-01 | D66: 100 шт. | E66: 3.42 | F66: 4615.03 | G66: 15783.39 | H66: 0 | I66: 0
A67: 16 * | B67: ТССЦ-509-2631 | C67: Капсула с клеевым составом Hilti HVU-TZ M20 | D67: шт. | E67: 342 | F67: 0 | G67: 0 | H67: 0 | I67: 0
A68: 17 * | B68: ТССЦ-509-4616 | C68: Шпилька анкерная Hilti: HIT-V-5,8 М16х300 (HAS) для использования с химическими анкерами HIT | D68: шт. | E68: 342 | F68: 0 | G68: 0 | H68: 0 | I68: 0
A69: Крепление тормозных упоров крацер-крана к роствергу | G69: 0 | I69: 0
A70: 18 | B70: ТЕР46-08-012-05 | C70: Установка анкеров в отверстия глубиной 100 мм с применением смесей серии MASTERFLOW, диаметр анкера: 20 мм и более | D70: 100 шт. | E70: 0.24 | F70: 32354.67 | G70: 7765.12 | H70: 0 | I70: 0
A71: 19 | B71: ТЕР46-08-012-10 | C71: На каждые 10 мм изменения глубины отверстия добавлять (уменьшать) к расценке: 46-08-012-05 | D71: 100 шт. | E71: 0.24 | F71: 117449.29 | G71: 28187.83 | H71: 0 | I71: 0
A72: 20 * | B72: ТССЦ-509-4614 | C72: Анкер химический (капсула с клеевым составом) Hilti HVU М24/210 | D72: шт. | E72: 24 | F72: 0 | G72: 0 | H72: 0 | I72: 0
A73: 21 * | B73: ТССЦ-509-4617 | C73: Шпилька анкерная Hilti: HIT-V-5,8 М24х450 (HAS) для использования с химическими анкерами HIT | D73: шт. | E73: 24 | F73: 0 | G73: 0 | H73: 0 | I73: 0
A74: Крепление крацер-крана в сервесном положении | G74: 0 | I74: 0
A75: 22 | B75: ТЕР46-08-012-01 | C75: Установка анкеров в отверстия глубиной 100 мм с применением смесей серии MASTERFLOW, диаметр анкера: до 8 мм | D75: 100 шт. | E75: 0.24 | F75: 13480.5 | G75: 3235.32 | H75: 0 | I75: 0
A76: 23 | B76: ТЕР46-08-012-06 | C76: На каждые 10 мм изменения глубины отверстия добавлять (уменьшать) к расценке: 46-08-012-01 | D76: 100 шт. | E76: 0.24 | F76: =G76/E76 -> 34613.88 | G76: 8307.33 | H76: =I76/E76 -> 0 | I76: 0
A77: 24 * | B77: ТССЦ-509-2631 | C77: Капсула с клеевым составом Hilti HVU-TZ M20 | D77: шт. | E77: 24 | F77: 0 | G77: 0 | H77: 0 | I77: 0
A78: 25 * | B78: ТССЦ-509-4616 | C78: Шпилька анкерная Hilti: HIT-V-5,8 М16х300 (HAS) для использования с химическими анкерами HIT | D78: шт. | E78: 24 | F78: 0 | G78: 0 | H78: 0 | I78: 0
A79: Крепление стоек подъемной карентки к роствергу | G79: 0 | I79: 0
A80: 26 | B80: ТЕР46-08-012-01 | C80: Установка анкеров в отверстия глубиной 100 мм с применением смесей серии MASTERFLOW, диаметр анкера: до 8 мм | D80: 100 шт. | E80: 0.16 | F80: 13476.75 | G80: 2156.28 | H80: 0 | I80: 0
A81: 27 | B81: ТЕР46-08-012-06 | C81: На каждые 10 мм изменения глубины отверстия добавлять (уменьшать) к расценке: 46-08-012-01 | D81: 100 шт. | E81: 0.16 | F81: 34606.38 | G81: 5537.02 | H81: 0 | I81: 0
A82: 28 * | B82: ТССЦ-509-4614 | C82: Анкер химический (капсула с клеевым составом) Hilti HVU М24/210 | D82: шт. | E82: 16 | F82: 0 | G82: 0 | H82: 0 | I82: 0
A83: 29 * | B83: ТССЦ-509-4617 | C83: Шпилька анкерная Hilti: HIT-V-5,8 М24х450 (HAS) для использования с химическими анкерами HIT | D83: шт. | E83: 16 | F83: 0 | G83: 0 | H83: 0 | I83: 0
A84: 30 | B84: ТЕР46-03-014-01 | C84: Сверление вертикальных отверстий в железобетонных конструкциях полов перфоратором глубиной 200 мм диаметром: 20 мм | D84: 100 отверстий | E84: 0.08 | F84: 16674.75 | G84: 1333.98 | H84: 0 | I84: 0
A85: 31 | B85: ТЕР46-03-014-14 | C85: На каждые 10 мм изменения глубины сверления добавлять или исключать: к расценке 46-03-014-01 | D85: 100 отверстий | E85: -0.08 | F85: 6867.38 | G85: -549.39 | H85: 0 | I85: 0
A86: 32 | B86: ТЕР06-01-015-03 | C86: Установка анкерных болтов: при бетонировании со связями из арматуры | D86: 1 т | E86: 0.002317 | F86: 269451.88 | G86: 624.32 | H86: 149762.62 | I86: 347
B87: 101-1513 | C87: Электроды диаметром: 4 мм Э42 | D87: т | E87: 0,002 0 | G87: 0 | I87: 0
B88: 201-0798 | C88: Кондуктор инвентарный металлический | D88: шт. | E88: 0,01 0 | G88: 0 | I88: 0
B89: 204-0005 | C89: Горячекатаная арматурная сталь гладкая класса А-I, диаметром: 14 мм | D89: т | E89: 0,09 0,0002 | G89: 0 | I89: 0
B90: 204-0059 | C90: Анкерные детали из прямых или гнутых круглых стержней с резьбой (в комплекте с шайбами и гайками или без них),: поставляемые отдельно | D90: т | E90: 1 0,0023 | G90: 0 | I90: 0
A91: Крепление тормазных упоров мобильного бункера | G91: 0 | I91: 0
A92: 33 | B92: ТЕР46-08-012-01 | C92: Установка анкеров в отверстия глубиной 100 мм с применением смесей серии MASTERFLOW, диаметр анкера: до 8 мм | D92: 100 шт. | E92: 0.18 | F92: 13485.5 | G92: 2427.39 | H92: 0 | I92: 0
A93: 34 | B93: ТЕР46-08-012-06 | C93: На каждые 10 мм изменения глубины отверстия добавлять (уменьшать) к расценке: 46-08-012-01 | D93: 100 шт. | E93: 0.18 | F93: 34611.39 | G93: 6230.05 | H93: 0 | I93: 0
A94: 35 * | B94: ТССЦ-509-4614 | C94: Анкер химический (капсула с клеевым составом) Hilti HVU М24/210 | D94: шт. | E94: 18 | F94: 0 | G94: 0 | H94: 0 | I94: 0
A95: 36 * | B95: ТССЦ-509-4617 | C95: Шпилька анкерная Hilti: HIT-V-5,8 М24х450 (HAS) для использования с химическими анкерами HIT | D95: шт. | E95: 18 | F95: 0 | G95: 0 | H95: 0 | I95: 0
A96: 37 | B96: ТЕР46-03-014-01 | C96: Сверление вертикальных отверстий в железобетонных конструкциях полов перфоратором глубиной 200 мм диаметром: 20 мм | D96: 100 отверстий | E96: 0.18 | F96: 16687.28 | G96: 3003.71 | H96: 0 | I96: 0
A97: 38 | B97: ТЕР46-03-014-14 | C97: На каждые 10 мм изменения глубины сверления добавлять или исключать: к расценке 46-03-014-01 | D97: 100 отверстий | E97: -0.18 | F97: 6862.44 | G97: -1235.24 | H97: 0 | I97: 0
A98: 39 | B98: ТЕР06-01-015-03 | C98: Установка анкерных болтов: при бетонировании со связями из арматуры | D98: 1 т | E98: 0.004086 | F98: 269429.76 | G98: 1100.89 | H98: 149762.6 | I98: 611.93
B99: 101-1513 | C99: Электроды диаметром: 4 мм Э42 | D99: т | E99: 0,002 0 | G99: 0 | I99: 0
B100: 201-0798 | C100: Кондуктор инвентарный металлический | D100: шт. | E100: 0,01 0 | G100: 0 | I100: 0
B101: 204-0005 | C101: Горячекатаная арматурная сталь гладкая класса А-I, диаметром: 14 мм | D101: т | E101: 0,09 0,0004 | G101: 0 | I101: 0
B102: 204-0059 | C102: Анкерные детали из прямых или гнутых круглых стержней с резьбой (в комплекте с шайбами и гайками или без них),: поставляемые отдельно | D102: т | E102: 1 0,0041 | G102: 0 | I102: 0
A103: Крепление стоек орграждения к роствергу | G103: 0 | I103: 0
A104: 40 | B104: ТЕР46-08-012-01 | C104: Установка анкеров в отверстия глубиной 100 мм с применением смесей серии MASTERFLOW, диаметр анкера: до 8 мм | D104: 100 шт. | E104: 0.6 | F104: 13483.48 | G104: 8090.09 | H104: 0 | I104: 0
A105: 41 | B105: ТЕР46-08-012-06 | C105: На каждые 10 мм изменения глубины отверстия добавлять (уменьшать) к расценке: 46-08-012-01 | D105: 100 шт. | E105: 0.6 | F105: 11538.45 | G105: 6923.07 | H105: 0 | I105: 0
A106: 42 * | B106: ТССЦ-509-2631 | C106: Капсула с клеевым составом Hilti HVU-TZ M20 | D106: шт. | E106: 60 | F106: 0 | G106: 0 | H106: 0 | I106: 0
A107: 43 * | B107: ТССЦ-509-4616 | C107: Шпилька анкерная Hilti: HIT-V-5,8 М16х300 (HAS) для использования с химическими анкерами HIT | D107: шт. | E107: 60 | F107: 0 | H107: 0 | J107: общая стоимость
C108: Всего, руб. с НДС | G108: =SUM(G11:G107) -> 31871107.46 | I108: =SUM(I11:I107) -> 549760.34 | J108: =G108+I108 -> 32420867.8
C109: Всего, руб. без НДС | G109: =G108/1.2 -> 26559256.22 | I109: =I108/1.2 -> 458133.62 | J109: =G109+I109 -> 27017389.84
